fUST/lending_fUST_20241112
["ID","MTS","AMOUNT","RATE_DAILY","PERIOD"]
[342033954,1731375805656,1169.27083333,0.00020845,2]
[342033957,1731376117380,1169.27083333,0.00020845,2]
[342034018,1731376236525,-497.42668,0.00020845,2]
[342034230,1731376238850,-671.84415333,0.00020845,2]
[342034232,1731376238860,-390.99801642,0.000212,2]
[342034289,1731376286992,1333.0,0.00026137,120]
[342034294,1731376662528,1215.4531855,0.00020669,2]
[342034295,1731376678067,1169.27083333,0.00020845,2]
[342034296,1731376680378,239.0412142,0.00020452,2]
[342034297,1731376812779,843.40006235,0.00020685,2]
[342034298,1731376834435,157.301,0.0002661,60]
[342034299,1731376988352,1169.27083333,0.00020845,2]
[342034300,1731377058034,199.999999,0.000208,2]
[342034301,1731377070714,1333.0,0.00026137,120]
[342034303,1731377158972,228.064544,0.00020348,2]
[342034304,1731377300322,1169.27083333,0.00020845,2]
[342034305,1731377326605,202.5247786,0.0002053,2]
[342034306,1731377329149,274.7524844,0.0002053,2]
[342034420,1731377433519,-416.28525,0.00020845,2]
[342034423,1731377433533,-752.98558333,0.00020845,2]
[342034425,1731377433543,-3828.96590018,0.00021,2]
[342034427,1731377433552,-300.0,0.00021079,2]
[342034429,1731377433561,-300.0,0.00021079,2]
[342034431,1731377433571,-6355.44853363,0.0002108,2]
[342034433,1731377433580,-289.28996944,0.000211,2]
[342034435,1731377433590,-614.11198358,0.000212,2]
[342034437,1731377433599,-289.28996942,0.00021233,2]
[342034439,1731377433608,-217.185,0.00021233,2]
[342034441,1731377433617,-189.6885,0.00021233,2]
[342034443,1731377433626,-289.28996942,0.00021365,2]
[342034445,1731377433636,-1000.0,0.00021465,2]
[342034447,1731377433647,-2383.07895564,0.00021465,2]
[342034466,1731377433815,-168.29504409,0.00021465,3]
[342034468,1731377433832,-500.0,0.00021508,2]
[342034471,1731377433842,-500.0,0.00021508,2]
[342034473,1731377433852,-500.0,0.00021508,2]
[342034474,1731377433861,-500.0,0.00021508,2]
[342034477,1731377433872,-500.0,0.00021508,2]
[342034478,1731377433881,-500.0,0.00021508,2]
[342034481,1731377433890,-500.0,0.00021508,2]
[342034483,1731377433900,-500.0,0.00021508,2]
[342034485,1731377433909,-500.0,0.00021508,2]
[342034486,1731377433918,-500.0,0.00021508,2]
[342034488,1731377433927,-500.0,0.00021508,2]
[342034490,1731377433937,-500.0,0.00021508,2]
[342034492,1731377433946,-500.0,0.00021508,2]
[342034494,1731377433955,-500.0,0.00021508,2]
[342034496,1731377433965,-500.0,0.00021508,2]
[342034498,1731377433974,-512.15714377,0.00021508,2]
[342034499,1731377433984,-1075.28,0.00021549,3]
[342034500,1731377433994,-537.64,0.00021549,3]
[342034501,1731377434003,-268.82,0.00021549,3]
[342034502,1731377434013,-806.48,0.00021549,3]
[342034503,1731377434023,-501.91630043,0.00021558,2]
[342034504,1731377434033,-500.0,0.00021558,2]
[342034505,1731377434042,-500.0,0.00021558,2]
[342034506,1731377434052,-272.49493661,0.00021558,2]
[342034507,1731377434062,-500.0,0.00021558,2]
[342034508,1731377434072,-500.0,0.00021558,2]
[342034509,1731377434082,-500.0,0.00021558,2]
[342034510,1731377434091,-328.27180624,0.00021558,2]
[342034511,1731377434100,-254.33583111,0.00021558,2]
[342034512,1731377434110,-500.0,0.00021558,2]
[342034513,1731377434119,-434.87350316,0.00021558,2]
[342034514,1731377434128,-500.0,0.00021558,2]
[342034515,1731377434138,-500.0,0.00021558,2]
[342034516,1731377434147,-500.0,0.00021558,2]
[342034517,1731377434156,-500.0,0.00021558,2]
[342034518,1731377434165,-500.0,0.00021558,2]
[342034519,1731377434174,-500.0,0.00021558,2]
[342034520,1731377434184,-500.0,0.00021558,2]
[342034521,1731377434193,-500.0,0.00021558,2]
[342034522,1731377434203,-429.04809031,0.00021558,2]
[342034523,1731377434212,-500.0,0.00021558,2]
[342034524,1731377434221,-500.0,0.00021558,2]
[342034525,1731377434230,-500.0,0.00021558,2]
[342034526,1731377434240,-500.0,0.00021558,2]
[342034527,1731377434248,-500.0,0.00021558,2]
[342034528,1731377434257,-500.0,0.00021558,2]
[342034529,1731377434266,-500.0,0.00021558,2]
[342034530,1731377434277,-500.0,0.00021558,2]
[342034531,1731377434286,-500.0,0.00021558,2]
[342034532,1731377434295,-500.0,0.00021558,2]
[342034533,1731377434305,-500.0,0.00021558,2]
[342034534,1731377434315,-500.0,0.00021558,2]
[342034535,1731377434324,-1410.89310236,0.00021558,2]
[342034555,1731377439047,-500.0,0.00021558,2]
[342034556,1731377439057,-500.0,0.00021558,2]
[342034557,1731377439067,-500.0,0.00021558,2]
[342034558,1731377439076,-500.0,0.00021558,2]
[342034559,1731377439086,-500.0,0.00021558,2]
[342034560,1731377439096,-643.03771076,0.00021558,2]
[342034561,1731377439106,-500.0,0.00021558,2]
[342034562,1731377439115,-500.0,0.00021558,2]
[342034563,1731377439124,-500.0,0.00021558,2]
[342034564,1731377439134,-500.0,0.00021558,2]
[342034565,1731377439143,-500.0,0.00021558,2]
[342034566,1731377439153,-500.0,0.00021558,2]
[342034567,1731377439162,-500.0,0.00021558,2]
[342034568,1731377439172,-500.0,0.00021558,2]
[342034569,1731377439182,-500.0,0.00021558,2]
[342034570,1731377439191,-500.0,0.00021558,2]
[342034571,1731377439201,-500.0,0.00021558,2]
[342034572,1731377439210,-500.0,0.00021558,2]
[342034573,1731377439220,-206.74716501,0.00021558,2]
[342034574,1731377439229,-500.0,0.00021558,2]
[342034575,1731377439239,-500.0,0.00021558,2]
[342034576,1731377439248,-500.0,0.00021558,2]
[342034577,1731377439257,-500.0,0.00021558,2]
[342034578,1731377439266,-500.0,0.00021558,2]
[342034579,1731377439275,-500.0,0.00021558,2]
[342034580,1731377439289,-500.0,0.00021558,2]
[342034581,1731377439298,-500.0,0.00021558,2]
[342034582,1731377439307,-701.7483744,0.00021558,2]
[342034583,1731377439317,-151.0,0.0002156,2]
[342034584,1731377439326,-151.0,0.00021561,2]
[342034585,1731377439335,-151.0,0.00021561,2]
[342034586,1731377439345,-151.0,0.00021561,2]
[342034587,1731377439357,-151.0,0.00021561,2]
[342034588,1731377439367,-1288.557451,0.00021561,2]
[342034589,1731377439376,-431.279526,0.00021561,2]
[342034590,1731377439385,-1288.557451,0.00021561,2]
[342034591,1731377439394,-431.279526,0.00021561,2]
[342034592,1731377439405,-1587.715044,0.00021562,2]
[342034593,1731377439414,-1587.715044,0.00021562,2]
[342034594,1731377439423,-153.541184,0.00021563,2]
[342034595,1731377439435,-151.0,0.00021563,2]
[342034596,1731377439444,-476.593369,0.00021563,2]
[342034597,1731377439453,-476.593369,0.00021563,2]
[342034598,1731377439462,-325.534718,0.00021563,2]
[342034599,1731377439471,-325.534718,0.00021563,2]
[342034600,1731377439481,-1587.715044,0.00021563,2]
[342034601,1731377439490,-1587.715044,0.00021563,2]
[342034602,1731377439500,-500.0,0.00021564,2]
[342034603,1731377439509,-636.73929311,0.00021564,2]
[342034604,1731377439518,-441.99107922,0.00021564,2]
[342034605,1731377439531,-538.03385231,0.00021564,2]
[342034606,1731377439539,-500.0,0.00021564,2]
[342034607,1731377439549,-480.87709912,0.00021564,2]
[342034608,1731377439558,-500.0,0.00021564,2]
[342034609,1731377439567,-500.0,0.00021564,2]
[342034610,1731377439576,-500.0,0.00021564,2]
[342034611,1731377439585,-228.78071365,0.00021564,2]
[342034612,1731377439594,-500.0,0.00021564,2]
[342034613,1731377439603,-500.0,0.00021564,2]
[342034614,1731377439612,-432.45151326,0.00021564,2]
[342034615,1731377439621,-588.11874063,0.00021564,2]
[342034616,1731377439630,-331.517969,0.00021564,2]
[342034617,1731377439639,-331.517969,0.00021564,2]
[342034618,1731377439648,-476.593369,0.00021564,2]
[342034619,1731377439657,-476.593369,0.00021564,2]
[342034620,1731377439666,-151.0,0.00021564,2]
[342034621,1731377439675,-152.956942,0.00021564,2]
[342034622,1731377439684,-936.124347,0.00021564,2]
[342034623,1731377439693,-936.124347,0.00021564,2]
[342034624,1731377439703,-460.052899,0.00021564,2]
[342034625,1731377439711,-460.052899,0.00021564,2]
[342034626,1731377439720,-151.0,0.00021564,2]
[342034627,1731377439729,-151.0,0.00021564,2]
[342034628,1731377439738,-151.0,0.00021564,2]
[342034629,1731377439747,-151.0,0.00021564,2]
[342034630,1731377439757,-151.0,0.00021564,2]
[342034631,1731377439766,-1288.557451,0.00021564,2]
[342034632,1731377439775,-431.279526,0.00021564,2]
[342034633,1731377439786,-1288.557451,0.00021564,2]
[342034634,1731377439797,-431.279526,0.00021564,2]
[342034635,1731377439808,-230000.0,0.00021565,2]
[342034636,1731377439818,-151.0,0.00021565,2]
[342034637,1731377439828,-151.0,0.00021565,2]
[342034638,1731377439838,-627.81314,0.00021565,2]
[342034639,1731377439848,-627.81314,0.00021565,2]
[342034640,1731377439858,-1144.850704,0.00021565,2]
[342034641,1731377439868,-1144.850704,0.00021565,2]
[342034642,1731377439878,-151.0,0.00021565,2]
[342034643,1731377439888,-331.517969,0.00021565,2]
[342034644,1731377439898,-151.0,0.00021565,2]
[342034645,1731377439907,-331.517969,0.00021565,2]
[342034646,1731377439916,-476.593369,0.00021565,2]
[342034647,1731377439927,-476.593369,0.00021565,2]
[342034648,1731377439936,-207.713733,0.00021565,2]
[342034649,1731377439946,-936.124347,0.00021565,2]
[342034650,1731377439955,-325.534718,0.00021565,2]
[342034651,1731377439964,-936.124347,0.00021565,2]
[342034652,1731377439973,-325.534718,0.00021565,2]
[342034653,1731377439983,-460.052899,0.00021565,2]
[342034654,1731377439992,-460.052899,0.00021565,2]
[342034655,1731377440001,-151.0,0.00021565,2]
[342034656,1731377440010,-151.0,0.00021565,2]
[342034657,1731377440019,-151.0,0.00021565,2]
[342034658,1731377440032,-151.0,0.00021565,2]
[342034659,1731377440041,-151.0,0.00021565,2]
[342034660,1731377440051,-1587.715044,0.00021565,2]
[342034661,1731377440060,-1587.715044,0.00021565,2]
[342034662,1731377440070,-151.0,0.00021565,2]
[342034663,1731377440079,-1288.557451,0.00021565,2]
[342034664,1731377440088,-431.279526,0.00021565,2]
[342034665,1731377440098,-1288.557451,0.00021565,2]
[342034666,1731377440107,-431.279526,0.00021565,2]
[342034667,1731377440266,-500.0,0.00021573,2]
[342034668,1731377440278,-500.0,0.00021573,2]
[342034669,1731377440288,-501.59412102,0.00021573,2]
[342034670,1731377440297,-500.0,0.00021573,2]
[342034671,1731377440307,-500.0,0.00021573,2]
[342034672,1731377440316,-593.63600035,0.00021573,2]
[342034673,1731377440325,-500.0,0.00021573,2]
[342034674,1731377440334,-500.0,0.00021573,2]
[342034675,1731377440343,-304.03060309,0.00021573,2]
[342034676,1731377440353,-500.18368657,0.00021573,2]
[342034679,1731377440365,-159.53095238,0.00021573,2]
[342034680,1731377440375,-327.47067678,0.00021573,2]
[342034681,1731377440384,-500.0,0.00021573,2]
[342034682,1731377440392,-500.0,0.00021573,2]
[342034683,1731377440402,-160.59037097,0.00021573,2]
[342034684,1731377440412,-431.3160879,0.00021573,2]
[342034685,1731377440421,-500.0,0.00021573,2]
[342034686,1731377440431,-500.0,0.00021573,2]
[342034687,1731377440441,-496.79834972,0.00021573,2]
[342034688,1731377440451,-363.72709278,0.00021573,2]
[342034689,1731377440460,-1864.85044296,0.00021598,2]
[342034690,1731377440469,-2000.0,0.000216,5]
[342034691,1731377440478,-1587.715044,0.00021608,2]
[342034692,1731377440487,-1587.715044,0.00021608,2]
[342034693,1731377440496,-331.517969,0.00021663,2]
[342034694,1731377440505,-331.517969,0.00021663,2]
[342034695,1731377440515,-936.124347,0.00021663,2]
[342034696,1731377440524,-936.124347,0.00021663,2]
[342034697,1731377440535,-460.052899,0.00021663,2]
[342034698,1731377440545,-460.052899,0.00021663,2]
[342034699,1731377440554,-151.0,0.00021663,2]
[342034700,1731377440563,-151.0,0.00021663,2]
[342034701,1731377440572,-294.018807,0.00021663,2]
[342034702,1731377440582,-154.795747,0.00021663,2]
[342034703,1731377440592,-151.0,0.00021664,2]
[342034705,1731377440601,-151.0,0.00021664,2]
[342034707,1731377440610,-151.0,0.00021664,2]
[342034708,1731377440619,-259.220553,0.00021665,2]
[342034710,1731377440629,-259.220553,0.00021665,2]
[342034712,1731377440638,-259.220553,0.00021665,2]
[342034713,1731377440647,-259.220553,0.00021665,2]
[342034714,1731377440656,-272.372432,0.00021665,2]
[342034715,1731377440666,-272.372432,0.00021665,2]
[342034716,1731377440675,-151.0,0.00021665,2]
[342034717,1731377440684,-151.0,0.00021665,2]
[342034718,1731377440693,-278.437994,0.00021665,2]
[342034720,1731377440703,-278.437994,0.00021665,2]
[342034721,1731377440712,-278.437994,0.00021665,2]
[342034723,1731377440722,-278.437994,0.00021665,2]
[342034724,1731377440731,-585.960317,0.00021665,2]
[342034725,1731377440741,-585.960317,0.00021665,2]
[342034726,1731377440754,-585.960317,0.00021665,2]
[342034727,1731377440763,-585.960317,0.00021665,2]
[342034728,1731377440773,-476.593369,0.00021665,2]
[342034729,1731377440785,-476.593369,0.00021665,2]
[342034730,1731377440793,-151.0,0.00021665,2]
[342034731,1731377440803,-151.0,0.00021665,2]
[342034732,1731377440814,-1288.557451,0.00021665,2]
[342034733,1731377440823,-431.279526,0.00021665,2]
[342034734,1731377440832,-1288.557451,0.00021665,2]
[342034735,1731377440842,-431.279526,0.00021665,2]
[342034736,1731377440851,-212.93592414,0.00021673,2]
[342034737,1731377440861,-605.88640843,0.00021673,2]
[342034738,1731377440871,-407.30648268,0.00021673,2]
[342034739,1731377440880,-501.88263939,0.00021673,2]
[342034740,1731377440890,-500.0,0.00021673,2]
[342034741,1731377440901,-500.67272822,0.00021673,2]
[342034742,1731377440911,-500.0,0.00021673,2]
[342034743,1731377440920,-500.0,0.00021673,2]
[342034744,1731377440930,-500.0,0.00021673,2]
[342034745,1731377440941,-500.0,0.00021673,2]
[342034746,1731377440950,-500.0,0.00021673,2]
[342034747,1731377440959,-500.0,0.00021673,2]
[342034748,1731377440968,-500.0,0.00021673,2]
[342034749,1731377440977,-500.0,0.00021673,2]
[342034750,1731377440986,-500.0,0.00021673,2]
[342034751,1731377440995,-381.88204628,0.00021673,2]
[342034752,1731377441004,-500.0,0.00021673,2]
[342034753,1731377441014,-273.24385793,0.00021673,2]
[342034754,1731377441023,-500.0,0.00021673,2]
[342034755,1731377441034,-153.30946986,0.00021673,2]
[342034756,1731377441043,-500.0,0.00021673,2]
[342034757,1731377441052,-200.46969255,0.00021673,2]
[342034758,1731377441061,-500.0,0.00021673,2]
[342034759,1731377441070,-500.0,0.00021673,2]
[342034760,1731377441079,-150.81008166,0.00021673,2]
[342034761,1731377441088,-500.99652449,0.00021673,2]
[342034762,1731377441098,-294.68173891,0.00021673,2]
[342034763,1731377441107,-500.0,0.00021673,2]
[342034764,1731377441116,-500.15231135,0.00021673,2]
[342034765,1731377441125,-500.0,0.00021673,2]
[342034766,1731377441135,-500.0,0.00021673,2]
[342034767,1731377441145,-299.72747928,0.00021673,2]
[342034768,1731377441154,-500.0,0.00021673,2]
[342034769,1731377441163,-173.16888546,0.00021673,2]
[342034770,1731377441172,-263.87702831,0.00021673,2]
[342034771,1731377441181,-500.0,0.00021673,2]
[342034772,1731377441190,-500.0,0.00021673,2]
[342034773,1731377441199,-205.23049862,0.00021673,2]
[342034774,1731377441208,-561.03925293,0.00021673,2]
[342034775,1731377441218,-160.57402892,0.00021673,2]
[342034776,1731377441228,-500.0,0.00021673,2]
[342034777,1731377441237,-500.0,0.00021673,2]
[342034778,1731377441246,-500.0,0.00021673,2]
[342034779,1731377441255,-319.81398612,0.00021673,2]
[342034780,1731377441265,-258.49628225,0.00021673,2]
[342034781,1731377441275,-507.6963819,0.00021673,2]
[342034782,1731377441289,-500.0,0.00021673,2]
[342034783,1731377441298,-500.311283,0.00021673,2]
[342034784,1731377441307,-500.0,0.00021673,2]
[342034785,1731377441316,-151.0,0.00021673,2]
[342034786,1731377441326,-151.0,0.00021673,2]
[342034787,1731377441336,-627.81314,0.00021673,2]
[342034788,1731377441345,-153.816431,0.00021673,2]
[342034789,1731377441355,-627.81314,0.00021673,2]
[342034790,1731377441366,-151.0,0.00021673,2]
[342034791,1731377441376,-151.0,0.00021673,2]
[342034792,1731377441385,-1144.850704,0.00021673,2]
[342034793,1731377441396,-1144.850704,0.00021673,2]
[342034794,1731377441405,-151.0,0.00021673,2]
[342034795,1731377441415,-151.939578,0.00021673,2]
[342034796,1731377441425,-325.534718,0.00021673,2]
[342034797,1731377441435,-325.534718,0.00021673,2]
[342034798,1731377441444,-151.0,0.00021673,2]
[342034799,1731377441453,-151.0,0.00021673,2]
[342034800,1731377441462,-157.254127,0.00021673,2]
[342034801,1731377441471,-1288.557451,0.00021673,2]
[342034802,1731377441480,-431.279526,0.00021673,2]
[342034803,1731377441489,-1288.557451,0.00021673,2]
[342034804,1731377441499,-431.279526,0.00021673,2]
[342034805,1731377441508,-7805.0,0.00021679,2]
[342034806,1731377441517,-151.0,0.00021698,2]
[342034807,1731377441528,-151.0,0.00021698,2]
[342034808,1731377441537,-151.0,0.00021698,2]
[342034809,1731377441546,-151.548736,0.00021698,2]
[342034810,1731377441555,-152.031304,0.00021698,2]
[342034811,1731377441565,-151.0,0.00021698,2]
[342034812,1731377441574,-8926.90855149,0.00021698,2]
[342034813,1731377441583,-151.0,0.00021698,2]
[342034814,1731377441592,-151.0,0.00021698,2]
[342034815,1731377441601,-367.03881381,0.00021698,2]
[342034816,1731377441610,-151.0,0.00021698,2]
[342034817,1731377441620,-125503.44386926,0.00021698,2]
[342034818,1731377441629,-151.0,0.00021698,2]
[342034819,1731377441638,-151.0,0.00021698,2]
[342034820,1731377441647,-151.0,0.00021698,2]
[342034821,1731377441656,-151.0,0.00021698,2]
[342034822,1731377441666,-151.0,0.00021698,2]
[342034823,1731377441675,-151.0,0.00021698,2]
[342034824,1731377441684,-318.674753,0.00021698,2]
[342034825,1731377441693,-318.674753,0.00021698,2]
[342034826,1731377441702,-2558.916555,0.00021698,2]
[342034827,1731377441711,-2558.916555,0.00021698,2]
[342034828,1731377441721,-259.220553,0.00021698,2]
[342034829,1731377441731,-259.220553,0.00021698,2]
[342034830,1731377441741,-259.220553,0.00021698,2]
[342034831,1731377441750,-259.220553,0.00021698,2]
[342034832,1731377441759,-259.220553,0.00021698,2]
[342034833,1731377441768,-259.220553,0.00021698,2]
[342034834,1731377441778,-151.0,0.00021698,2]
[342034835,1731377441791,-151.0,0.00021698,2]
[342034836,1731377441800,-151.0,0.00021698,2]
[342034837,1731377441809,-272.372432,0.00021698,2]
[342034838,1731377441819,-272.372432,0.00021698,2]
[342034839,1731377441829,-272.372432,0.00021698,2]
[342034840,1731377441838,-151.0,0.00021698,2]
[342034841,1731377441847,-151.0,0.00021698,2]
[342034842,1731377441856,-151.0,0.00021698,2]
[342034843,1731377441865,-272.372432,0.00021698,2]
[342034844,1731377441874,-272.372432,0.00021698,2]
[342034845,1731377441884,-272.372432,0.00021698,2]
[342034846,1731377441893,-151.0,0.00021698,2]
[342034847,1731377441902,-151.0,0.00021698,2]
[342034848,1731377441911,-163.196249,0.00021698,2]
[342034849,1731377441920,-627.81314,0.00021698,2]
[342034850,1731377441929,-627.81314,0.00021698,2]
[342034851,1731377441938,-627.81314,0.00021698,2]
[342034852,1731377441947,-627.81314,0.00021698,2]
[342034853,1731377441956,-627.81314,0.00021698,2]
[342034854,1731377441965,-627.81314,0.00021698,2]
[342034855,1731377441975,-151.0,0.00021698,2]
[342034856,1731377441984,-268.083423,0.00021698,2]
[342034857,1731377441993,-278.437994,0.00021698,2]
[342034858,1731377442002,-278.437994,0.00021698,2]
[342034859,1731377442011,-278.437994,0.00021698,2]
[342034860,1731377442020,-278.437994,0.00021698,2]
[342034861,1731377442032,-278.437994,0.00021698,2]
[342034862,1731377442041,-278.437994,0.00021698,2]
[342034863,1731377442051,-151.0,0.00021698,2]
[342034864,1731377442072,-151.0,0.00021698,2]
[342034865,1731377442083,-151.0,0.00021698,2]
[342034866,1731377442092,-585.960317,0.00021698,2]
[342034867,1731377442101,-585.960317,0.00021698,2]
[342034868,1731377442110,-585.960317,0.00021698,2]
[342034869,1731377442119,-585.960317,0.00021698,2]
[342034870,1731377442129,-585.960317,0.00021698,2]
[342034871,1731377442138,-585.960317,0.00021698,2]
[342034872,1731377442147,-1144.850704,0.00021698,2]
[342034873,1731377442157,-1144.850704,0.00021698,2]
[342034874,1731377442166,-1144.850704,0.00021698,2]
[342034875,1731377442175,-1144.850704,0.00021698,2]
[342034876,1731377442185,-1144.850704,0.00021698,2]
[342034877,1731377442194,-1144.850704,0.00021698,2]
[342034878,1731377442203,-151.0,0.00021698,2]
[342034879,1731377442213,-151.0,0.00021698,2]
[342034880,1731377442222,-151.0,0.00021698,2]
[342034881,1731377442232,-331.517969,0.00021698,2]
[342034882,1731377442241,-331.517969,0.00021698,2]
[342034883,1731377442251,-331.517969,0.00021698,2]
[342034884,1731377442261,-331.517969,0.00021698,2]
[342034885,1731377442270,-331.517969,0.00021698,2]
[342034886,1731377442280,-331.517969,0.00021698,2]
[342034887,1731377442290,-476.593369,0.00021698,2]
[342034888,1731377442299,-476.593369,0.00021698,2]
[342034889,1731377442308,-476.593369,0.00021698,2]
[342034890,1731377442317,-476.593369,0.00021698,2]
[342034891,1731377442327,-476.593369,0.00021698,2]
[342034892,1731377442336,-476.593369,0.00021698,2]
[342034893,1731377442346,-936.124347,0.00021698,2]
[342034894,1731377442362,-936.124347,0.00021698,2]
[342034895,1731377442371,-936.124347,0.00021698,2]
[342034896,1731377442382,-325.534718,0.00021698,2]
[342034897,1731377442392,-325.534718,0.00021698,2]
[342034898,1731377442403,-30104.63314077,0.00021698,2]
[342034899,1731377442412,-325.534718,0.00021698,2]
[342034900,1731377442421,-936.124347,0.00021698,2]
[342034901,1731377442431,-936.124347,0.00021698,2]
[342034902,1731377442440,-936.124347,0.00021698,2]
[342034903,1731377442450,-325.534718,0.00021698,2]
[342034904,1731377442459,-325.534718,0.00021698,2]
[342034905,1731377442468,-325.534718,0.00021698,2]
[342034906,1731377442477,-460.052899,0.00021698,2]
[342034907,1731377442487,-460.052899,0.00021698,2]
[342034908,1731377442496,-460.052899,0.00021698,2]
[342034909,1731377442505,-460.052899,0.00021698,2]
[342034910,1731377442514,-460.052899,0.00021698,2]
[342034911,1731377442523,-460.052899,0.00021698,2]
[342034912,1731377442534,-151.0,0.00021698,2]
[342034913,1731377442547,-151.0,0.00021698,2]
[342034914,1731377442558,-151.0,0.00021698,2]
[342034915,1731377442567,-156.752542,0.00021698,2]
[342034916,1731377442577,-151.0,0.00021698,2]
[342034917,1731377442586,-151.0,0.00021698,2]
[342034918,1731377442596,-221.671931,0.00021698,2]
[342034919,1731377442605,-151.0,0.00021698,2]
[342034920,1731377442614,-1587.715044,0.00021698,2]
[342034921,1731377442623,-1587.715044,0.00021698,2]
[342034922,1731377442632,-1587.715044,0.00021698,2]
[342034923,1731377442641,-1587.715044,0.00021698,2]
[342034924,1731377442650,-1587.715044,0.00021698,2]
[342034925,1731377442659,-1587.715044,0.00021698,2]
[342034926,1731377442668,-1587.715044,0.00021698,2]
[342034927,1731377442677,-1587.715044,0.00021698,2]
[342034928,1731377442686,-1288.557451,0.00021698,2]
[342034929,1731377442695,-1288.557451,0.00021698,2]
[342034930,1731377442704,-1288.557451,0.00021698,2]
[342034931,1731377442713,-1288.557451,0.00021698,2]
[342034932,1731377442722,-431.279526,0.00021698,2]
[342034933,1731377442731,-431.279526,0.00021698,2]
[342034934,1731377442740,-1288.557451,0.00021698,2]
[342034935,1731377442749,-431.279526,0.00021698,2]
[342034936,1731377442759,-1288.557451,0.00021698,2]
[342034937,1731377442768,-431.279526,0.00021698,2]
[342034938,1731377442776,-1288.557451,0.00021698,2]
[342034939,1731377442789,-1288.557451,0.00021698,2]
[342034940,1731377442798,-431.279526,0.00021698,2]
[342034941,1731377442807,-431.279526,0.00021698,2]
[342034942,1731377442817,-431.279526,0.00021698,2]
[342034943,1731377442826,-431.279526,0.00021698,2]
[342034944,1731377442836,-150.112233,0.000217,4]
[342034945,1731377442845,-150.112233,0.000217,4]
[342034946,1731377442855,-150.112233,0.000217,3]
[342034947,1731377442864,-164.260444,0.000217,4]
[342034948,1731377442874,-476.593369,0.00021717,2]
[342034949,1731377442883,-476.593369,0.00021717,2]
[342034950,1731377442892,-228.064544,0.00021718,2]
[342034951,1731377442902,-483.92000312,0.0002172,2]
[342034952,1731377442911,-1288.557451,0.0002172,2]
[342034953,1731377442920,-431.279526,0.0002172,2]
[342034954,1731377442929,-1288.557457,0.0002172,2]
[342034955,1731377442939,-431.279532,0.0002172,2]
[342034956,1731377442948,-160.0,0.00021791,3]
[342034957,1731377442957,-2000.0,0.000218,3]
[342034958,1731377442967,-2000.0,0.000218,4]
[342034959,1731377442976,-208.718081,0.000218,2]
[342034960,1731377442985,-208.718081,0.000218,2]
[342034961,1731377442995,-151.0,0.000218,2]
[342034962,1731377443004,-152.806068,0.000218,2]
[342034963,1731377443013,-255.51961,0.000218,2]
[342034964,1731377443023,-151.0,0.000218,2]
[342034965,1731377443036,-151.0,0.000218,2]
[342034966,1731377443047,-1560.927566,0.000218,2]
[342034967,1731377443057,-1560.927566,0.000218,2]
[342034968,1731377443066,-150.112233,0.000218,4]
[342034969,1731377443076,-150.112233,0.000218,4]
[342034970,1731377443085,-150.112233,0.000218,4]
[342034971,1731377443095,-150.112233,0.000218,3]
[342034972,1731377443107,-150.112233,0.000218,3]
[342034973,1731377443116,-221.949948,0.000218,2]
[342034974,1731377443126,-221.949948,0.000218,2]
[342034975,1731377443135,-531.439251,0.000218,2]
[342034976,1731377443144,-531.439251,0.000218,2]